Cogmind - Beta 13 @@@ ROGUE MODE // 2024.04.20 @ 13:29:29 Player: MO-55 Result: Destroyed by SQ-SWP(R) with Subdweller Beam Cannon Performance ------------- Evolutions (0) 0 Regions Visited (2) 400 Robots Destroyed (27) 135 Value Destroyed (841) 841 Prototype IDs (3) 60 Alien Tech Used (0) 0 Bonus (0) 0 TOTAL SCORE: 1436 Bonus ------- None Cogmind --------- Core Integrity 0/250 Matter 78/300 Energy 250/250 System Corruption 0% Temperature Cool (9) Movement Treading (240) Ox1 Location -10/Subcaves Parts ------- > --- POWER (1) -------- Ion Engine > --- PROPULSION (2) --- Light Treads Light Treads > --- UTILITY (2) ------ High-capacity Storage Unit > --- WEAPON (2) ------- Light Cannon > --- INVENTORY (20) --- Makeshift Power Source Light Treads Light Treads Aluminum Leg Aluminum Leg Aluminum Leg Aluminum Leg Aluminum Leg Wheel Wheel Wheel Wheel Wheel Hacking Suite Assault Rifle Grenade Launcher Mining Laser Peak State ------------ > --- POWER ------------ Ion Engine > --- PROPULSION ------- Aluminum Leg Aluminum Leg > --- UTILITY ---------- High-capacity Storage Unit Light Armor Plating > --- WEAPON ----------- Battle Cannon Slug Cannon > --- INVENTORY -------- Ion Engine Light Treads Light Treads Light Treads Light Treads Aluminum Leg Aluminum Leg Aluminum Leg Aluminum Leg Wheel Wheel Wheel Wheel Wheel Hacking Suite Assault Rifle Light Cannon Grenade Launcher Mining Laser [Rating: 13] Favorites ----------- Power Ion Engine Engine Ion Engine Propulsion Aluminum Leg Treads Light Treads Leg Aluminum Leg Wheel Wheel Utility High-capacity Storage Unit Storage High-capacity Storage Unit Protection Light Armor Plating Weapon Medium Laser Energy Gun Medium Laser Ballistic Gun Light Assault Rifle Ballistic Cannon Slug Cannon Launcher Grenade Launcher Build | -11 -10 -10 ------- Run | Yrd Mat Sub Slots Evolved . | . . . Power . | . . . Propulsion . | . . . Utility . | . . . Weapon . | . . . Parts Attached 24 | 8 8 8 Power 3 | 1 1 1 Engine 3 | 1 1 1 Core . | . . . Reactor . | . . . Propulsion 10 | 4 3 3 Treads 2 | . . 2 Leg 6 | 2 3 1 Wheel 2 | 2 . . Hover . | . . . Flight . | . . . Utility 3 | 1 1 1 Device . | . . . Storage 2 | 1 1 . Processor . | . . . Hackware . | . . . Protection 1 | . . 1 Artifact . | . . . Weapon 8 | 2 3 3 Energy Gun 1 | 1 . . Energy Cannon . | . . . Ballistic Gun 2 | 1 1 . Ballistic Cannon 4 | . 1 3 Launcher 1 | . 1 . Special Weapon . | . . . Impact Weapon . | . . . Slashing Weapon . | . . . Piercing Weapon . | . . . Special Melee Weapon . | . . . Unidentified Prototypes . | . . . Parts Lost 7 | . 2 5 Power 2 | . 1 1 Propulsion 2 | . 1 1 Utility 1 | . . 1 Weapon 2 | . . 2 Highest Loss Streak 1 | . 1 1 To Critical Strikes 1 | . . 1 Average Slot Usage (%) 85 | . 84 86 Engine 13 | . 13 13 Treads 7 | . . 14 Leg 20 | . 28 13 Storage 14 | . 14 14 Protection 1 | . . 1 Energy Gun 7 | . 14 1 Ballistic Gun 3 | . 8 . Ballistic Cannon 16 | . 5 26 Naked Turns . | . . . Heaviest Build 58 | 13 50 58 Greatest Support 40 | 20 20 40 Greatest Overweight (x) 2 | . 2 2 Average Overweight (x) 1 | . . 1 Largest Inventory Capacity 20 | 8 20 20 Average Capacity 16 | 7 13 20 Most Carried 20 | 5 20 20 Average Carried 13 | 3 9 18 Final Capacity 20 | 8 20 20 Final Carried 20 | 5 20 17 Class Distribution -------------------- 100% | Mutant Dominant Class ---------------- Mutant | -10/Materials Mutant | -10/Subcaves Resources | -11 -10 -10 ----------- Run | Yrd Mat Sub Matter Collected 698 | 230 274 194 Remotely . | . . . Salvage Created 707 | . 639 68 Parts 36 | . 33 3 Haulers Intercepted 1 | . 1 . Recyclers Shooed . | . . . Parts Field Recycled . | . . . Retrieved Matter . | . . . Parts Self-Destructed 8 | . . 8 Prevented . | . . . Kills | -11 -10 -10 ------- Run | Yrd Mat Sub Combat Hostiles Destroyed 24 | . 18 6 Guns 10 | . 10 . Cannons 9 | . 3 6 AOE 5 | . 5 . Classes Destroyed 6 | . 6 . Worker 1 | . 1 . Hauler 1 | . 1 . Operator 1 | . 1 . Swarmer 3 | . 3 . Grunt 14 | . 14 . Subdweller 7 | . 1 6 Best Kill Streak 5 | . 5 2 Combat Bots Only 5 | . 5 2 Max Kills in Single Turn 2 | . 2 1 Gunslinging . | . . . Exploded 2 | . 2 . Melee . | . . . Uniques/NPCs Destroyed . | . . . Combat | -11 -10 -10 -------- Run | Yrd Mat Sub Hostile Shots Fired 115 | . 72 43 Missed 29 | . 19 10 Damage Taken 1439 | . 638 801 Core 254 | . 168 86 Absorbed by Shields . | . . . Core Remaining (%) 100 | 100 . . Volleys Fired 108 | . 70 38 Largest 2 | . 2 2 Hottest 87 | . 85 87 Shots Fired 201 | . 135 66 Gun 117 | . 117 . Cannon 79 | . 13 66 Launcher 5 | . 5 . Special . | . . . Kinetic 131 | . 65 66 Thermal 65 | . 65 . Explosive 5 | . 5 . Electromagnetic . | . . . Robot Hit Streak 15 | . 15 9 Robot Miss Streak 3 | . 3 3 Penetration Max . | . . . Secondary Targets . | . . . Shots Hit Robots 120 | . 87 33 Core Hits 47 | . 40 7 Critical Kills 2 | . . 2 Critical Parts Destroyed . | . . . Critical Strikes 11 | . 4 7 Burn 3 | . 3 . Destroy 4 | . . 4 Blast 4 | . 1 3 Melee Attacks . | . . . Impact . | . . . Slashing . | . . . Piercing . | . . . Sneak Attacks . | . . . Combat Hostiles . | . . . Follow-up Attacks . | . . . Damage Inflicted 2283 | . 1475 808 Guns 820 | . 820 . Cannons 1020 | . 212 808 Explosions 443 | . 443 . Melee . | . . . Ramming . | . . . Kinetic 1255 | . 447 808 Thermal 585 | . 585 . Explosive 443 | . 443 . Electromagnetic . | . . . Impact . | . . . Slashing . | . . . Piercing . | . . . Highest Corruption . | . . . Average Corruption . | . . . Corruption Purged . | . . . Corruption Blocked . | . . . Overload Shots . | . . . Overflow Damage 12 | . 12 . Projectiles 3 | . 3 . Explosions 9 | . 9 . Melee . | . . . Knockbacks 5 | . . 5 Impact . | . . . Kinetic 5 | . . 5 Secondary . | . . . Self-Inflicted Damage . | . . . Shots . | . . . Rammed . | . . . Targets Rammed . | . . . Kicked . | . . . Crushed . | . . . Highest Temperature 311 | . 311 4 Average Temperature 92 | . 93 4 Received Heat Transfer 462 | . 321 141 Effects 1 | . 1 . Energy Bleed 1 | . 1 . Siege Activations . | . . . Robots Corrupted . | . . . Combat Hostiles . | . . . Parts Fried . | . . . Impact Corruptions . | . . . Robots Melted . | . . . Combat Hostiles . | . . . Parts Melted 4 | . 4 . Heat Transferred 1961 | . 1961 . Parts Sabotaged . | . . . Parts Stolen . | . . . Parts Stripped . | . . . Power Chain Reactions . | . . . Alert | -11 -10 -10 ------- Run | Yrd Mat Sub Peak Influence 259 | . 259 . Initial . | . . . Average 130 | . 138 . Maximum Alert Level 1 | . 1 . Low Security (%) 74 | 100 73 . Level 1 25 | . 26 . Level 2 . | . . . Level 3 . | . . . Level 4 . | . . . Level 5 . | . . . High Security . | . . . Max Security . | . . . Squads Dispatched 4 | . 4 . Investigation 1 | . 1 . Extermination . | . . . Reinforcement 3 | . 3 . Assault . | . . . Garrison . | . . . Intercept . | . . . Searches Triggered . | . . . Construction Impeded . | . . . Haulers Reinforced . | . . . Active Scanning Responses . | . . . Cargo Convoy Interrupts . | . . . Stealth | -11 -10 -10 --------- Run | Yrd Mat Sub Distress Signals . | . . . Communications Jammed . | . . . Distress Signals . | . . . Times Spotted 36 | . 28 8 Peak Tracking Total 4 | . 4 2 Tactical Retreats 2 | . 2 . Traps | -11 -10 -10 ------- Run | Yrd Mat Sub Traps Triggered 1 | . 1 . Indirectly . | . . . Trap Hack Attempts . | . . . Triggered . | . . . Disarmed . | . . . Reprogrammed . | . . . Reused . | . . . Traps Extracted . | . . . Installed . | . . . Triggered . | . . . Machines | -11 -10 -10 ---------- Run | Yrd Mat Sub Machines Disabled 1 | . 1 . Max in Single Turn 1 | . 1 . Machines Repaired . | . . . Machines Dismantled . | . . . Machines Sabotaged . | . . . Overloaded Fab Kills . | . . . Hacking | -11 -10 -10 --------- Run | Yrd Mat Sub Machines Accessed 6 | . 6 . Terminals 6 | . 6 . Fabricators . | . . . Repair Stations . | . . . Recycling Units . | . . . Scanalyzers . | . . . Garrison Access . | . . . Total Hacks 21 | . 21 . Successful 9 | . 9 . Failed 12 | . 12 . Catastrophic 2 | . 2 . Database Lockouts . | . . . Manual 2 | . 2 . Terminals 21 | . 21 . Fabricators . | . . . Repair Stations . | . . . Recycling Units . | . . . Scanalyzers . | . . . Garrison Access . | . . . Terminal Hacks 8 | . 8 . Prototype ID Bank 2 | . 2 . Emergency Access Points 1 | . 1 . Alert Level 1 | . 1 . Locate Traps 2 | . 2 . Hauler Manifests 1 | . 1 . Zone Layout 1 | . 1 . Fabricator Hacks . | . . . Repair Station Hacks . | . . . Recycling Unit Hacks . | . . . Scanalyzer . | . . . Garrison Access Hacks . | . . . Unauthorized Hacks 1 | . 1 . Terminals 1 | . 1 . Botnet 1 | . 1 . Fabricators . | . . . Repair Stations . | . . . Recycling Units . | . . . Scanalyzers . | . . . Garrison Access . | . . . Data Cores Recovered . | . . . Used . | . . . Hacking Detections 4 | . 4 . Full Trace Events . | . . . Feedback Events . | . . . Feedback Blocked . | . . . Robot Schematics Acquired . | . . . Robots Built . | . . . Authchips . | . . . Time . | . . . Total Robot Build Rating . | . . . Part Schematics Acquired . | . . . Parts Built . | . . . Authchips . | . . . Time . | . . . Total Part Build Rating . | . . . Parts Repaired . | . . . Time . | . . . Parts Recycled . | . . . Recycled Matter . | . . . Retrieved Matter . | . . . Retrieved Components . | . . . Parts Scanalyzed . | . . . Part Schematics Acquired . | . . . Parts Damaged . | . . . Bothacking | -11 -10 -10 ------------ Run | Yrd Mat Sub Used RIF Installer . | . . . Robots Hacked . | . . . Non-combat . | . . . Combat . | . . . Robot Hacks Applied . | . . . Relay Couplers Released . | . . . Fabnet Peak Effective % . | . . . Robots Rewired . | . . . Allies Hacked . | . . . Hacks Repelled . | . . . Allies | -11 -10 -10 -------- Run | Yrd Mat Sub Total Allies . | . . . Largest Group . | . . . Highest-Rated Group . | . . . Highest-Rated Ally . | . . . Total Orders . | . . . Ally Attacks . | . . . Total Damage . | . . . Kills . | . . . Allies Corrupted . | . . . Allies Melted . | . . . Intel | -11 -10 -10 ------- Run | Yrd Mat Sub Robot Analysis Total . | . . . Derelict Logs Recovered . | . . . Drone Launches . | . . . Drone Recoveries . | . . . Exploration | -11 -10 -10 ------------- Run | Yrd Mat Sub Turns Passed 3233 | 81 1431 1721 Spaces Moved 1361 | 63 674 624 Core 2 | 2 . . Treads 323 | . . 323 Legs 1012 | 37 674 301 Wheels 24 | 24 . . Hover . | . . . Flight . | . . . Fastest Speed 50 | 50 120 240 Average Speed 202 | 102 167 249 Slowest Speed 260 | 120 260 260 Overloaded Moves . | . . . Propulsion Burnouts . | . . . Robots Hopped . | . . . Cave-ins Triggered . | . . . Exploration Rate (%) 42 | 5 86 36 Regions Visited 2 Branch Regions 1 Pre-discovered Areas . | . . . Known Exits Taken . | . . . Unknown Exits Taken 2 | 1 1 . Scrap Searched . | . . . Spaces Dug . | . . . Terrain Destroyed 38 | . 30 8 Melee . | . . . Projectile 8 | . . 8 AOE 30 | . 30 . Terrain Rammed . | . . . Walls Destroyed . | . . . Machines Disabled . | . . . Actions | -11 -10 -10 --------- Run | Yrd Mat Sub Total 1651 | 75 855 721 Wait 125 | . 79 46 Move 1359 | 62 673 624 Hop . | . . . Pick Up 26 | 5 19 2 Fast Attach 10 | 6 2 2 Attach 5 | . 1 4 Detach . | . . . Swap 9 | 2 5 2 Drop 9 | . 6 3 Fire 108 | . 70 38 Melee . | . . . Ram . | . . . Kick . | . . . Crush . | . . . Escape Stasis . | . . . Rewire . | . . . Trap . | . . . Miscellaneous . | . . . Route ------- -11/Scrapyard -10/Materials (discovered 4 exits: [*Mat x2] / [*Min] / [*Sub]) -10/Subcaves (discovered 1 exit: [*Mat]) History --------- Turn | Location | Event 9 | -11/Scrapyard | Discovered new exit (range 15) 82 | -11/Scrapyard | Entered Materials 311 | -10/Materials | Build established: Mutant 403 | -10/Materials | Discovered new exit (range 8) 455 | -10/Materials | Core integrity fell below 50% 551 | -10/Materials | Discovered new exit (range 14) 676 | -10/Materials | Discovered new exit (range 15) 1282 | -10/Materials | Derelicts attacked the area 1404 | -10/Materials | Discovered new exit (range 7) 1513 | -10/Materials | Entered Subcaves 1637 | -10/Subcaves | Shifting Twisted Machinery released Battle Cannon 1786 | -10/Subcaves | Shifting Twisted Machinery released Slug Cannon 2521 | -10/Subcaves | Core integrity fell below 20% 2919 | -10/Subcaves | Discovered new exit (range 8) 3234 | -10/Subcaves | Destroyed by SQ-SWP(R) with Subdweller Beam Cannon Last Messages --------------- 02764_ 35-81H(R) destroyed. 02797_ Acquired 1 matter. 02798_ Subatomizers dissect the Sub. Power Source. 02804_ Acquired 11 matter. 02809_ Subatomizers dissect the Sub. Power Source. 02809_ Acquired 12 matter. 02811_ Acquired 5 matter. 02820_ Subatomizers dissect the Sub. Power Source. 02823_ Acquired 8 matter. 02830_ Subatomizers dissect the Sub. Power Source. 02840_ Acquired 6 matter. 02873_ Acquired 4 matter. 02919_ EXIT=FOUND 03174_ Acquired 13 matter. 03183_ Acquired Mak. Power Source. 03234_ Slug Cannon destroyed. Map ----- +----------------------------------------------------+ | ????????????????????## #????## ""##?# ## | | ?????????????????????# #?????### ""### | | ????????????????????? ???????## "%" | | ????????????????????? ???????#" """ | | ???????????????????? ## ????""### " | | ??????????????????????? ?#"""""" " "" | | ??????????????????????? ###""" % "" | | ???????????????????????#??# " % #" | | ??????????????????????????# ##" "" ### | | ?????????????????????????# ###### " ## | | ????????????????????????# % #????# ##### | | ??????????????????????? ##????## ####?? | | ?????????????????????? #??????# #### ### | | ???????????????????????## ???????# #?## ## | | ????????????????????????# ????????## ### | | ???????????????????????? "????????# ## | | ???????????????????????? "???????## | | ????????????????????????? "#??????# | | | ????????????????????????? %""?????# ## # < | | ?????????????????????????? "##????# #### | | ????????? ????????????## ""#????######## | | ????????? ????????????# ""#?????????## | | ????????? ???? ??????# "" #???####?## | | ????????? ???? ##???###""##?### ### ####### | | ????????? ???# #?###";" ### ##?????# | | ????????? #??? #?# @""""" ##??????# | | ?????????# #?## ?## "#""" ## #???????# | | ?????????# ### #?# ####""""### #???###?# | | ????????## ## ###Ru##?# " ##?# #?### #?? | | ????????# # #R #?##""#??##### ### #?? | | ????????# ### """#??####??????## ### | | ???????## #?# " ##????????????## # | | ## ???## #?# ""#?????????????# | | # ## #?## ##?????????????# | | % ### ###????????????# ## | | #????????????# ##### | | ??### #???????????# ##???## | | ????### ## #???????????## ##?????# | | ??????## #### #????????????####??????## | | ???????# ???# ##???????????????????????? | | ???????# ???# #????????????????????????? | | ???????## ???#### ##????????????????????????? | | ????????##??????## #?????????????????????????? | | ?????????????????## ##?????????????????????????? | | ??????????????????# ##??????????????????????????? | | ?????????????????? #???????????????????????????? | | ?????????????????# ???????????????????????????? | | ?????????????????# ??????????????????????????? | | ?????????????????# #?????????????????????????? | | ?????????????????# #?????????????????????????? | +----------------------------------------------------+ Best States ------------- Heat Dissipation 25 Energy Generation 10 Energy Capacity 250 Matter Stores 300 Matter Capacity 300 Sight Range 16 Terrain Scan Density 10 Armor Coverage 150 Evasion (%) 55 Recoil Reduction 2 Item Schematics ----------------- None Robot Schematics ------------------ None Fabricated ------------ Nothing Alien Tech Used ----------------- None Achievements -------------- None Challenges ------------ None Game ------ Seed CoolingShockMicrothruster Manual? 0 Play Time 00:19:38 Cumulative 104.9 hours Start 2024.04.20 @ 12:58:53 End 2024.04.20 @ 13:29:29 Sessions 1 Manual Loads 0 Difficulty Rogue Special Mode None Game No. 90 Rogue 90 Adventurer 0 Explorer 0 Win Type - Total 2 Types 1/0/1/0/0/0/0/0/0 Lore% 48 Gallery% 61 Achievement% 50 Wizard Run 0 Options --------- Layout 2 ASCII 0 Keyboard 0 Movement Mouse Keybinds 0 Fullscreen 2 Font 32/SmallcapsGlow Map View 50x44 Zoom Use 0% Tactical HUD 1 Map Filters NONE Filters NONE Steam 1 RUN: 67dfbe3e-87d8-4052-bf82-c92d690e2770